Cogmind - Beta 13 @@@ ROGUE MODE // 2024.07.03 @ 11:16:56 Player: ZergFTW Result: Destroyed by H-71 Marshal with Heavy Mass Driver Performance ------------- Evolutions (6) 3000 Regions Visited (9) 1800 Robots Destroyed (201) 1005 Value Destroyed (6219) 6219 Prototype IDs (13) 260 Alien Tech Used (0) 0 Bonus (1068) 1068 TOTAL SCORE: 13352 Bonus ------- High Alert Combat Kills 520 Follower Combat Kills 166 Entered DSFs 500 Friendly Fire -118 Cogmind --------- Core Integrity 0/1150 Matter 256/300 Energy 38/100 System Corruption 10% Temperature Cool (0) Movement Core (50) Location -4/Factory Parts ------- > --- POWER (2) -------- (None) > --- PROPULSION (5) --- (None) > --- UTILITY (8) ------ Advanced Signal Interpreter Improved Targeting Computer Improved Target Analyzer Improved Target Analyzer Graphene Brace > --- WEAPON (4) ------- (None) > --- INVENTORY (5) ---- Advanced Matter Compressor (108) Structural Scanner Seismic Detector Advanced ECM Suite Gravity Flail Peak State ------------ > --- POWER ------------ Antimatter Reactor Light Antimatter Reactor > --- PROPULSION ------- Wheel Wheel Compact Wheel Compact Wheel Compact Wheel > --- UTILITY ---------- High-capacity Storage Unit Advanced Sensor Array Improved Signal Interpreter Improved Targeting Computer Improved Target Analyzer Improved Medium Armor Plating Graphene Brace Improved Force Field > --- WEAPON ----------- Heavy Machine Gun KE Penetrator Enhanced Coil Gun Mass Driver > --- INVENTORY -------- Light Nuclear Core Light Nuclear Core Wheel Wheel Compact Wheel Compact Wheel Improved Antigrav System Medium Storage Unit Matter Compressor Structural Scanner Advanced Signal Interpreter Seismic Detector Improved Target Analyzer Advanced ECM Suite Improved Shield Generator High-powered Shock Rifle Tesla Rifle Magnetic Acceleration Cannon Mass Driver Axe [Rating: 83] Favorites ----------- Power Cooled Ion Engine Engine Cooled Ion Engine Power Core Enhanced Nuclear Core Reactor Antimatter Reactor Propulsion Light Treads Treads Light Treads Wheel Compact Wheel Hover Unit Antigrav System Utility High-capacity Storage Unit Device Advanced Sensor Array Storage High-capacity Storage Unit Processor Improved Targeting Computer Hackware Authchip [R/Combat] Protection Light Armor Plating Weapon Improved Assault Rifle Energy Gun Tesla Rifle Energy Cannon Advanced Beam Cannon Ballistic Gun Improved Assault Rifle Ballistic Cannon Light Cannon Launcher Rocket Launcher Impact Weapon Gravity Flail Slashing Weapon Axe Build | -11 -10 -9 -9 -9 -7 -6 -5 -5 -4 ------- Run | Yrd Mat Mat Sto Rec Fac Fac Fac DSF Fac Slots Evolved 12 | . . 2 . . 4 2 2 . 2 Power 1 | . . . . . . . . . 1 Propulsion 3 | . . 1 . . 1 . . . 1 Utility 6 | . . 1 . . 2 1 2 . . Weapon 2 | . . . . . 1 1 . . . Parts Attached 266 | 7 4 35 43 2 12 77 4 15 67 Power 20 | 1 . 5 1 . 1 4 . 2 6 Engine 11 | 1 . 5 1 . 1 2 . . 1 Core 7 | . . . . . . 2 . 2 3 Reactor 2 | . . . . . . . . . 2 Propulsion 70 | 3 . 13 9 1 2 19 . 4 19 Treads 48 | . . 13 9 1 2 18 . 4 1 Leg . | . . . . . . . . . . Wheel 15 | 3 . . . . . . . . 12 Hover 7 | . . . . . . 1 . . 6 Flight . | . . . . . . . . . . Utility 86 | 2 2 9 14 1 7 27 2 2 20 Device 36 | 1 . 3 7 1 2 10 1 1 10 Storage 8 | 1 1 1 . . . 1 . . 4 Processor 9 | . . 1 1 . . 3 . . 4 Hackware 1 | . . . . . . 1 . . . Protection 32 | . 1 4 6 . 5 12 1 1 2 Artifact . | . . . . . . . . . . Weapon 90 | 1 2 8 19 . 2 27 2 7 22 Energy Gun 4 | . . . 1 . . . . . 3 Energy Cannon 1 | . . . 1 . . . . . . Ballistic Gun 52 | 1 . 4 11 . 2 22 2 4 6 Ballistic Cannon 20 | . 2 3 . . . 2 . 3 10 Launcher 2 | . . 1 1 . . . . . . Special Weapon . | . . . . . . . . . . Impact Weapon 1 | . . . . . . . . . 1 Slashing Weapon 10 | . . . 5 . . 3 . . 2 Piercing Weapon . | . . . . . . . . . . Special Melee Weapon . | . . . . . . . . . . Unidentified Prototypes 11 | . . 3 2 . . 2 1 . 3 Parts Lost 75 | . 1 6 1 . 2 19 . 11 35 Power 7 | . . . . . . 1 . 2 4 Propulsion 32 | . 1 4 . . . 7 . 5 15 Utility 19 | . . 1 1 . 2 7 . 3 5 Weapon 17 | . . 1 . . . 4 . 1 11 Highest Loss Streak 16 | . 1 2 1 . 2 4 . 10 16 To Critical Strikes 2 | . . 1 . . . . . . 1 Average Slot Usage (%) 96 | . 98 98 99 100 98 97 94 87 81 Engine 7 | . 14 10 11 11 7 3 . . 2 Core 1 | . . . . . . 2 5 4 1 Treads 25 | . . 32 32 33 30 24 23 20 5 Wheel 2 | . 27 . . . . . . . 11 Device 7 | . 1 3 3 10 7 10 4 8 13 Storage 8 | . 14 11 11 11 7 6 5 5 4 Processor 10 | . . 7 7 11 7 15 17 16 13 Protection 7 | . 12 10 10 . 12 5 11 5 4 Ballistic Gun 17 | . 1 9 18 22 23 24 23 16 13 Ballistic Cannon 4 | . 24 11 . . . 1 . 4 4 Naked Turns . | . . . . . . . . . . Heaviest Build 117 | 10 52 61 65 61 75 113 91 101 117 Greatest Support 99 | 26 20 63 66 63 83 96 96 99 74 Greatest Overweight (x) 5 | 2 5 1 1 . . 1 . 2 4 Average Overweight (x) . | . 1 . . . . . . . . Largest Inventory Capacity 20 | 8 20 20 20 20 20 20 20 20 20 Average Capacity 19 | 7 19 20 20 20 20 20 20 20 19 Most Carried 20 | 8 17 20 20 20 20 20 19 20 20 Average Carried 18 | 5 14 17 19 19 18 18 18 18 15 Final Capacity 20 | 8 20 20 20 20 20 20 20 20 5 Final Carried 20 | 8 17 20 20 20 20 20 19 17 5 Scrap Engine Consumption 7 | . . . . . . 7 . . . Class Distribution -------------------- 29% | Mutant 21% | Scavenger-Gunner 18% | Commander-Mutant 14% | Scavenger-Skirmisher 7% | Scavenger-Mutant 6% | Scavenger-Tank Dominant Class ---------------- Mutant | -10/Materials Mutant | -9/Materials Commander-Mutant | -9/Storage Commander-Mutant | -9/Recycling Scavenger-Tank | -7/Factory Scavenger-Gunner | -6/Factory Scavenger-Gunner | -5/Factory Scavenger-Gunner | -5/DSF Scavenger-Gunner | -4/Factory Resources | -11 -10 -9 -9 -9 -7 -6 -5 -5 -4 ----------- Run | Yrd Mat Mat Sto Rec Fac Fac Fac DSF Fac Matter Collected 8042 | 392 129 1243 965 38 378 2829 . 202 1866 Remotely . | . . . . . . . . . . Salvage Created 7807 | 167 189 1123 1219 114 488 2680 . 168 1659 Parts 482 | 9 12 99 73 10 18 166 . 8 87 Haulers Intercepted 12 | . 1 5 5 . . 1 . . . Recyclers Shooed 9 | . 1 1 . . 1 2 . . 4 Parts Field Recycled . | . . . . . . . . . . Retrieved Matter . | . . . . . . . . . . Parts Self-Destructed . | . . . . . . . . . . Prevented . | . . . . . . . . . . Kills | -11 -10 -9 -9 -9 -7 -6 -5 -5 -4 ------- Run | Yrd Mat Mat Sto Rec Fac Fac Fac DSF Fac Combat Hostiles Destroyed 129 | . 1 28 21 2 7 47 . 3 20 Guns 101 | . . 11 21 2 7 43 . 1 16 Cannons 23 | . 1 16 . . . 3 . 2 1 AOE 5 | . . 1 . . . 1 . . 3 Classes Destroyed 17 | 3 5 3 1 . 1 1 . 1 2 Worker 12 | 2 . 3 1 . . 2 . . 4 Builder 12 | . 1 3 1 . . 3 . . 4 Tunneler 5 | 2 . 1 . . . 1 . . 1 Hauler 12 | . 1 5 5 . . 1 . . . Recycler 11 | 1 1 1 . . 1 2 . . 5 Mechanic 1 | . . . . . . . . . 1 Operator 5 | . 2 2 1 . . . . . . Watcher 13 | . 1 5 1 . . 4 . . 2 Swarmer 41 | . . 13 4 . . 16 . . 8 Grunt 33 | . 1 5 8 . 5 10 . . 4 Brawler 3 | . . . 1 . 1 1 . . . Duelist 4 | . . 1 . . . 3 . . . Sentry 29 | . . 9 8 2 1 8 . . 1 Specialist 2 | . . . . . . . . 2 . Hunter 5 | . . . . . . 2 . 1 2 Programmer 12 | . . . . . 1 7 . . 4 Striker 1 | . . . . . . . . . 1 Best Kill Streak 8 | 2 3 5 5 2 3 8 . 2 8 Combat Bots Only 8 | . 1 4 4 2 3 6 . 2 8 Max Kills in Single Turn 3 | 1 1 2 1 1 1 3 . 1 3 Gunslinging 1 | . . 1 . . . 1 . . 1 Exploded 2 | . . 1 . . . 1 . . 2 Melee . | . . . . . . . . . . Uniques/NPCs Destroyed . | . . . . . . . . . . Combat | -11 -10 -9 -9 -9 -7 -6 -5 -5 -4 -------- Run | Yrd Mat Mat Sto Rec Fac Fac Fac DSF Fac Hostile Shots Fired 1279 | . 29 143 122 4 121 520 . 81 259 Missed 408 | . 8 37 32 . 42 194 . 15 80 Damage Taken 13708 | . 274 1488 1061 66 823 4381 . 1917 3698 Core 2274 | . 25 140 77 14 105 510 . 245 1158 Absorbed by Shields 802 | . . 55 203 . . . . . 544 Regen/Repaired (Parts) 377 | . . 236 121 . . . . . 20 Core Remaining (%) 72 | 100 90 . . 42 85 40 . 75 . Volleys Fired 470 | 25 21 126 85 3 29 108 . 5 68 Largest 4 | 1 2 2 2 2 3 4 . 4 4 Hottest 215 | 20 70 74 46 46 69 136 . 174 215 Shots Fired 1225 | 25 36 244 148 6 87 427 . 20 232 Gun 962 | 25 6 88 137 6 87 406 . 10 197 Cannon 251 | . 30 155 . . . 21 . 10 35 Launcher 12 | . . 1 11 . . . . . . Special . | . . . . . . . . . . Kinetic 1203 | 25 36 243 137 6 87 427 . 20 222 Thermal . | . . . . . . . . . . Explosive 12 | . . 1 11 . . . . . . Electromagnetic 10 | . . . . . . . . . 10 Robot Hit Streak 37 | 6 5 16 37 7 18 22 . 5 10 Robot Miss Streak 5 | 3 5 5 2 . 2 5 . 2 5 Penetration Max 2 | . . . . . . 1 . . 2 Secondary Targets 10 | . . 1 1 . 1 5 . . 2 Max Gunslinging Chain 1 | . . 1 1 . 1 1 . . 1 Shots Hit Robots 781 | 17 18 160 113 5 67 265 . 12 124 Core Hits 339 | 10 9 59 43 2 22 125 . 5 64 Critical Kills 11 | . . 3 2 . . 1 . . 5 Critical Parts Destroyed 12 | . . 1 1 . 2 1 . . 7 Critical Strikes 28 | . . 7 3 . 2 2 . . 14 Destroy 23 | . . 4 3 . 2 2 . . 12 Blast 5 | . . 3 . . . . . . 2 Melee Attacks 52 | . . . 44 . . 3 . . 5 Impact 2 | . . . . . . . . . 2 Slashing 50 | . . . 44 . . 3 . . 3 Piercing . | . . . . . . . . . . Sneak Attacks . | . . . . . . . . . . Combat Hostiles . | . . . . . . . . . . Follow-up Attacks . | . . . . . . . . . . Damage Inflicted 16440 | 142 302 2981 1810 74 1100 5294 . 257 4480 Guns 11953 | 142 36 898 1810 74 1100 4597 . 165 3131 Cannons 3391 | . 266 2013 . . . 340 . 92 680 Explosions 1096 | . . 70 . . . 357 . . 669 Melee . | . . . . . . . . . . Ramming . | . . . . . . . . . . Kinetic 15296 | 142 302 2911 1810 74 1100 4937 . 257 3763 Thermal 444 | . . . . . . 357 . . 87 Explosive 652 | . . 70 . . . . . . 582 Electromagnetic 48 | . . . . . . . . . 48 Impact . | . . . . . . . . . . Slashing . | . . . . . . . . . . Piercing . | . . . . . . . . . . Highest Corruption 10 | . . . . . 2 7 . . 10 Average Corruption 3 | . . . . . 1 3 . . 2 Corruption Purged . | . . . . . . . . . . Corruption Blocked . | . . . . . . . . . . Effects 80 | . . . . . 3 62 . . 15 Message Errors 23 | . . . . . . 21 . . 2 Matter Fused 23 | . . . . . 1 17 . . 5 Heat Flow Errors 11 | . . . . . . 10 . . 1 Energy Discharges 5 | . . . . . . 3 . . 2 Parts Rejected 1 | . . . . . . . . . 1 Data Loss (minor) 7 | . . . . . . 6 . . 1 Data Loss (major) 3 | . . . . . . 1 . . 2 Misfires 3 | . . . . . 1 2 . . . Alerts 1 | . . . . . . 1 . . . Weapon Failures 3 | . . . . . 1 1 . . 1 Overload Shots . | . . . . . . . . . . Overflow Damage 183 | . . 33 . . . 130 . . 20 Projectiles 54 | . . 33 . . . 1 . . 20 Explosions 129 | . . . . . . 129 . . . Melee . | . . . . . . . . . . Knockbacks 30 | . 3 12 . . . 3 . . 12 Impact . | . . . . . . . . . . Kinetic 26 | . 3 10 . . . 3 . . 10 Secondary 4 | . . 2 . . . . . . 2 Self-Inflicted Damage 103 | . . . 15 . . . . . 88 Shots 2 | . . . 1 . . . . . 1 Rammed . | . . . . . . . . . . Targets Rammed . | . . . . . . . . . . Kicked . | . . . . . . . . . . Crushed . | . . . . . . . . . . Highest Temperature 366 | . 157 130 23 20 137 311 . 72 366 Average Temperature 64 | . 40 41 6 12 45 77 . 26 89 Received Heat Transfer 2078 | . 177 437 329 60 276 753 . . 46 Effects 5 | . . . . . . 2 . . 3 Shutdowns 1 | . . . . . . . . . 1 Interference 4 | . . . . . . 2 . . 2 Siege Activations . | . . . . . . . . . . Robots Corrupted . | . . . . . . . . . . Combat Hostiles . | . . . . . . . . . . Parts Fried . | . . . . . . . . . . Impact Corruptions . | . . . . . . . . . . Robots Melted . | . . . . . . . . . . Combat Hostiles . | . . . . . . . . . . Parts Melted . | . . . . . . . . . . Heat Transferred 300 | . . . . . . 250 . . 50 Parts Sabotaged . | . . . . . . . . . . Parts Stolen . | . . . . . . . . . . Parts Stripped . | . . . . . . . . . . Power Chain Reactions . | . . . . . . . . . . Alert | -11 -10 -9 -9 -9 -7 -6 -5 -5 -4 ------- Run | Yrd Mat Mat Sto Rec Fac Fac Fac DSF Fac Peak Influence 1025 | 25 215 246 431 103 158 1025 501 389 599 Initial 501 | . 16 1 97 . . 14 501 354 177 Average 222 | 10 65 126 227 20 61 401 501 355 200 Maximum Alert Level 3 | . 1 1 2 . . 3 2 1 2 Low Security (%) 58 | 100 97 83 35 100 100 28 . . 69 Level 1 23 | . 2 16 62 . . 21 . 100 7 Level 2 12 | . . . 2 . . 30 100 . 22 Level 3 5 | . . . . . . 19 . . . Level 4 . | . . . . . . . . . . Level 5 . | . . . . . . . . . . High Security . | . . . . . . . . . . Max Security . | . . . . . . . . . . Squads Dispatched 34 | . 2 2 3 . 2 17 . 1 7 Investigation 6 | . . 1 2 . . 3 . . . Extermination 10 | . . . . . 2 5 . . 3 Reinforcement 14 | . 2 1 1 . . 5 . 1 4 Assault 1 | . . . . . . 1 . . . Garrison 3 | . . . . . . 3 . . . Intercept . | . . . . . . . . . . Searches Triggered . | . . . . . . . . . . Construction Impeded 1 | . . . . . . . . . 1 Haulers Reinforced 3 | . . . . . . 3 . . . Active Scanning Responses . | . . . . . . . . . . Cargo Convoy Interrupts 1 | . . . . . . . . . 1 Stealth | -11 -10 -9 -9 -9 -7 -6 -5 -5 -4 --------- Run | Yrd Mat Mat Sto Rec Fac Fac Fac DSF Fac Distress Signals 6 | . . 3 1 . . 2 . . . Communications Jammed . | . . . . . . . . . . Distress Signals . | . . . . . . . . . . Times Spotted 215 | . 16 39 26 3 11 69 . 6 45 Peak Tracking Total 8 | . 7 7 6 2 4 6 . 4 8 Tactical Retreats 17 | . 1 2 1 . 2 5 . 2 4 Traps | -11 -10 -9 -9 -9 -7 -6 -5 -5 -4 ------- Run | Yrd Mat Mat Sto Rec Fac Fac Fac DSF Fac Traps Triggered 7 | . . 1 . . . 5 . . 1 Indirectly . | . . . . . . . . . . Trap Hack Attempts . | . . . . . . . . . . Triggered . | . . . . . . . . . . Disarmed . | . . . . . . . . . . Reprogrammed . | . . . . . . . . . . Reused . | . . . . . . . . . . Traps Extracted . | . . . . . . . . . . Installed . | . . . . . . . . . . Triggered 4 | . . . . . . 4 . . . Machines | -11 -10 -9 -9 -9 -7 -6 -5 -5 -4 ---------- Run | Yrd Mat Mat Sto Rec Fac Fac Fac DSF Fac Machines Disabled 22 | . 1 1 2 . . 7 . . 11 Max in Single Turn 4 | . 1 1 1 . . 4 . . 4 Garrison Access 3 | . . . 1 . . 1 . . 1 Machines Repaired . | . . . . . . . . . . Machines Dismantled . | . . . . . . . . . . Machines Sabotaged . | . . . . . . . . . . Overloaded Fab Kills . | . . . . . . . . . . Hacking | -11 -10 -9 -9 -9 -7 -6 -5 -5 -4 --------- Run | Yrd Mat Mat Sto Rec Fac Fac Fac DSF Fac Machines Accessed 51 | . 1 14 13 8 . 10 1 . 4 Terminals 27 | . . 10 9 5 . 1 1 . 1 Fabricators 2 | . . . . . . 2 . . . Repair Stations 7 | . . 2 1 . . 3 . . 1 Recycling Units 9 | . 1 2 2 3 . 1 . . . Scanalyzers 2 | . . . . . . 1 . . 1 Garrison Access 4 | . . . 1 . . 2 . . 1 Total Hacks 129 | . 1 46 28 21 . 26 1 . 6 Successful 59 | . 1 20 14 9 . 10 1 . 4 Failed 70 | . . 26 14 12 . 16 . . 2 Catastrophic 17 | . . 6 5 4 . 2 . . . Database Lockouts . | . . . . . . . . . . Manual 52 | . . 25 14 9 . 3 . . 1 Terminals 68 | . . 32 19 13 . 2 1 . 1 Fabricators 7 | . . . . . . 7 . . . Repair Stations 19 | . . 7 2 . . 8 . . 2 Recycling Units 23 | . 1 7 6 8 . 1 . . . Scanalyzers 7 | . . . . . . 5 . . 2 Garrison Access 5 | . . . 1 . . 3 . . 1 Terminal Hacks 23 | . . 10 7 4 . . 1 . 1 Part Schematic 1 | . . . . 1 . . . . . Robot Schematic 1 | . . . . 1 . . . . . Robot Analysis 3 | . . 3 . . . . . . . Prototype ID Bank 1 | . . 1 . . . . . . . Open Door 2 | . . . 2 . . . . . . Open DSF 1 | . . . . . . . 1 . . Branch Access Points 3 | . . 1 . 1 . . . . 1 Terminal Index 1 | . . . 1 . . . . . . Repair Station Index 1 | . . 1 . . . . . . . Alert Level 1 | . . . . 1 . . . . . Unreport Threat 4 | . . 2 2 . . . . . . Locate Traps 1 | . . . 1 . . . . . . Registered Components 1 | . . 1 . . . . . . . Zone Layout 2 | . . 1 1 . . . . . . Fabricator Hacks 3 | . . . . . . 3 . . . Load Schematic 2 | . . . . . . 2 . . . Build 1 | . . . . . . 1 . . . Repair Station Hacks 11 | . . 5 2 . . 2 . . 2 Scan Component 7 | . . 3 1 . . 2 . . 1 Repair 4 | . . 2 1 . . . . . 1 Recycling Unit Hacks 15 | . 1 5 4 5 . . . . . Report Inventory 10 | . 1 3 3 3 . . . . . Retrieve Components 5 | . . 2 1 2 . . . . . Scanalyzer 4 | . . . . . . 4 . . . Insert Component 2 | . . . . . . 2 . . . Analyze 2 | . . . . . . 2 . . . Garrison Access Hacks 3 | . . . 1 . . 1 . . 1 Seal Access 3 | . . . 1 . . 1 . . 1 Unauthorized Hacks . | . . . . . . . . . . Terminals . | . . . . . . . . . . Fabricators . | . . . . . . . . . . Repair Stations . | . . . . . . . . . . Recycling Units . | . . . . . . . . . . Scanalyzers . | . . . . . . . . . . Garrison Access . | . . . . . . . . . . Data Cores Recovered 1 | . . 1 . . . . . . . Used 1 | . . 1 . . . . . . . Hacking Detections 38 | . . 12 9 5 . 9 . . 3 Full Trace Events 5 | . . . 2 . . 3 . . . Feedback Events . | . . . . . . . . . . Feedback Blocked . | . . . . . . . . . . Robot Schematics Acquired 1 | . . . . 1 . . . . . Robots Built 2 | . . . . . . 2 . . . Authchips 1 | . . . . . . 1 . . . Time 49 | . . . . . . 49 . . . Total Robot Build Rating 4 | . . . . . . 4 . . . Part Schematics Acquired 2 | . . . . 1 . 1 . . . Parts Built . | . . . . . . . . . . Authchips . | . . . . . . . . . . Time . | . . . . . . . . . . Total Part Build Rating . | . . . . . . . . . . Parts Repaired 4 | . . 2 1 . . . . . 1 Time 150 | . . 68 32 . . . . . 50 Parts Recycled . | . . . . . . . . . . Recycled Matter . | . . . . . . . . . . Retrieved Matter . | . . . . . . . . . . Retrieved Components 28 | . . 10 9 9 . . . . . Parts Scanalyzed 1 | . . . . . . 1 . . . Part Schematics Acquired 1 | . . . . . . 1 . . . Parts Damaged . | . . . . . . . . . . Bothacking | -11 -10 -9 -9 -9 -7 -6 -5 -5 -4 ------------ Run | Yrd Mat Mat Sto Rec Fac Fac Fac DSF Fac Used RIF Installer . | . . . . . . . . . . Robots Hacked . | . . . . . . . . . . Non-combat . | . . . . . . . . . . Combat . | . . . . . . . . . . Robot Hacks Applied . | . . . . . . . . . . Relay Couplers Released 2 | . . . . . . 2 . . . Machine Destruction 2 | . . . . . . 2 . . . Fabnet Peak Effective % . | . . . . . . . . . . Robots Rewired . | . . . . . . . . . . Allies Hacked . | . . . . . . . . . . Hacks Repelled . | . . . . . . . . . . Allies | -11 -10 -9 -9 -9 -7 -6 -5 -5 -4 -------- Run | Yrd Mat Mat Sto Rec Fac Fac Fac DSF Fac Total Allies 12 | . . . 10 . . 2 . . . Largest Group 10 | . . . 10 10 5 1 . . . Highest-Rated Group 88 | . . . 88 88 48 15 . . . Highest-Rated Ally 16 | . . . 16 16 16 15 . . . Total Orders 8 | . . . 8 . . . . . . STAY 2 | . . . 2 . . . . . . ROAM 3 | . . . 3 . . . . . . FOLLOW 2 | . . . 2 . . . . . . EXPLORE 1 | . . . 1 . . . . . . Ally Attacks 59 | . . . 10 10 37 2 . . . Total Damage 671 | . . . 118 112 414 27 . . . Kills 5 | . . . 2 1 2 . . . . Allies Corrupted . | . . . . . . . . . . Allies Melted . | . . . . . . . . . . Intel | -11 -10 -9 -9 -9 -7 -6 -5 -5 -4 ------- Run | Yrd Mat Mat Sto Rec Fac Fac Fac DSF Fac Robot Analysis Total 3 | . . 3 . . . . . . . Derelict Logs Recovered . | . . . . . . . . . . Drone Launches 19 | . . . 19 . . . . . . Drone Recoveries 5 | . . . 5 . . . . . . Exploration | -11 -10 -9 -9 -9 -7 -6 -5 -5 -4 ------------- Run | Yrd Mat Mat Sto Rec Fac Fac Fac DSF Fac Turns Passed 15308 | 157 406 3576 2716 1478 514 4241 152 291 1777 Spaces Moved 7623 | 98 277 1850 1335 867 245 1839 92 117 903 Core 82 | 23 . . . . . . . . 59 Treads 6595 | . . 1850 1335 867 245 1839 92 117 250 Legs . | . . . . . . . . . . Wheels 910 | 75 277 . . . . . . . 558 Hover 36 | . . . . . . . . . 36 Flight . | . . . . . . . . . . Fastest Speed 50 | 50 80 160 160 160 160 160 160 160 50 Average Speed 161 | 93 108 163 163 160 160 179 160 177 139 Slowest Speed 320 | 150 155 240 240 160 160 240 160 320 320 Overloaded Moves . | . . . . . . . . . . Propulsion Burnouts . | . . . . . . . . . . Robots Hopped . | . . . . . . . . . . Cave-ins Triggered . | . . . . . . . . . . Exploration Rate (%) 45 | 5 37 95 97 99 4 36 2 61 17 Regions Visited 9 Branch Regions 2 Pre-discovered Areas 1 | . . . 1 . . . . . . Known Exits Taken 3 | . . 1 . . . 1 1 . . Unknown Exits Taken 5 | 1 1 . 1 1 1 . . . . Scrap Searched . | . . . . . . . . . . Spaces Dug 50 | . . . 43 . . 2 . . 5 Terrain Destroyed 290 | . . 10 43 . . 72 . 7 158 Melee 17 | . . . 10 . . 2 . . 5 Projectile 80 | . . 1 . . . 15 . 7 57 AOE 193 | . . 9 33 . . 55 . . 96 Terrain Rammed . | . . . . . . . . . . Walls Destroyed . | . . . . . . . . . . Machines Disabled . | . . . . . . . . . . Actions | -11 -10 -9 -9 -9 -7 -6 -5 -5 -4 --------- Run | Yrd Mat Mat Sto Rec Fac Fac Fac DSF Fac Total 9604 | 141 346 2168 1644 954 303 2506 96 190 1256 Wait 888 | . 32 84 88 72 7 413 . 36 156 Move 7614 | 97 276 1849 1334 866 244 1838 91 116 903 Hop . | . . . . . . . . . . Pick Up 152 | 11 10 39 13 3 6 32 . 10 28 Fast Attach 41 | 3 2 5 4 . 1 7 1 . 18 Attach 84 | 3 . 9 1 . 6 28 1 7 29 Detach 13 | . . . . . 1 5 1 . 6 Swap 141 | 1 2 21 38 2 5 42 2 8 20 Drop 136 | 1 3 35 27 5 4 30 . 8 23 Fire 470 | 25 21 126 85 3 29 108 . 5 68 Melee 52 | . . . 44 . . 3 . . 5 Ram . | . . . . . . . . . . Kick . | . . . . . . . . . . Crush . | . . . . . . . . . . Escape Stasis . | . . . . . . . . . . Rewire 6 | . . . 3 3 . . . . . Trap . | . . . . . . . . . . Miscellaneous 7 | . . . 7 . . . . . . Route ------- -11/Scrapyard -10/Materials (discovered 2 exits: *Mat / [*Min]) -9/Materials (discovered 5 exits: *Mat x2 / *Min x2 / *Sto) -9/Storage (discovered 2 exits: *Mat / *Rec) -9/Recycling -7/Factory -6/Factory -5/Factory -5/DSF -4/Factory (discovered 5 exits: Upp x2 / Ext x2 / Arm) History --------- Turn | Location | Event 15 | -11/Scrapyard | Discovered new exit (range 15) 158 | -11/Scrapyard | Entered Materials 318 | -10/Materials | Build established: Mutant 424 | -10/Materials | Discovered new exit (range 12) 427 | -10/Materials | Discovered new exit (range 15) 564 | -10/Materials | Entered another Materials area 564 | -9/Materials | Evolved 2 slots: Propulsion x1, Utility x1 619 | -9/Materials | Discovered new exit (range 3) 652 | -9/Materials | Identified exit to Storage 1048 | -9/Materials | Identified exit to Mines 2068 | -9/Materials | Discovered new exit (range 10) 2321 | -9/Materials | Identified exit to Materials 3007 | -9/Materials | Repaired Imp. Treads 3020 | -9/Materials | Repaired Broken Lgt. Treads 3223 | -9/Materials | Build established: Scavenger-Mutant 3463 | -9/Materials | Discovered exit to Materials (range 10) 4140 | -9/Materials | Entered Storage 4214 | -9/Storage | Build established: Mutant 4258 | -9/Storage | Learned location of Armory (-4) 4949 | -9/Storage | Core integrity fell below 50% 5489 | -9/Storage | Assisted by bots powering up and referring to "LRC-V3" 5581 | -9/Storage | Repaired Imp. Treads 5737 | -9/Storage | Discovered exit to Materials (range 10) 5784 | -9/Storage | Build established: Commander-Mutant 6833 | -9/Storage | Used back door to open Recycling access 6833 | -9/Storage | Discovered new exit (range 5) 6856 | -9/Storage | Entered Recycling 6856 | -9/Recycling | Accompanied by 10 allies 6861 | -9/Recycling | Found Scrap Engine 7284 | -9/Recycling | Discovered new exit (range 10) 8334 | -9/Recycling | Entered Factory 8334 | -7/Factory | Accompanied by 5 allies 8334 | -7/Factory | Evolved 4 slots: Propulsion x1, Utility x2, Weapon x1 8418 | -7/Factory | Discovered new exit (range 10) 8561 | -7/Factory | Lost 3 allies 8848 | -7/Factory | Entered another Factory area 8848 | -6/Factory | Evolved 2 slots: Utility x1, Weapon x1 8971 | -6/Factory | Spotted B-75 Beast 9149 | -6/Factory | Build established: Scavenger-Gunner 9352 | -6/Factory | Fabricated Y-45 Defender (x2) 9823 | -6/Factory | Garrison activated, responded to threat 10088 | -6/Factory | Lost 3 parts (2n1u) 10128 | -6/Factory | Build established: Scavenger-Tank 10424 | -6/Factory | Lost 4 parts (2u2w) 10715 | -6/Factory | Build established: Scavenger-Gunner 11325 | -6/Factory | Build established: Scavenger-Skirmisher 11481 | -6/Factory | Discovered new exit (range 11) 12104 | -6/Factory | Found Hvy. Reflective Plating 12501 | -6/Factory | Core integrity fell below 50% 12730 | -6/Factory | Build established: Scavenger-Gunner 13048 | -6/Factory | First assault squad dispatched 13087 | -6/Factory | Identified exit to Factory 13089 | -6/Factory | Entered another Factory area 13089 | -5/Factory | Evolved 2 slots: Utility x2 13241 | -5/Factory | Identified exit to DSF 13241 | -5/Factory | Entered DSF 13403 | -5/DSF | Additional patrols routed to DSF 13471 | -5/DSF | Discovered new exit (range 12) 13529 | -5/DSF | Identified exit to Factory 13532 | -5/DSF | Entered Factory 13532 | -4/Factory | Evolved 2 slots: Power x1, Propulsion x1 13557 | -4/Factory | Lost 10 parts (2p4n3u1w) 14144 | -4/Factory | Build established: Scavenger-Skirmisher 14315 | -4/Factory | Lost 3 parts (1n2w) 14426 | -4/Factory | Identified exit to Upper Caves 14426 | -4/Factory | Identified exit to Extension 14426 | -4/Factory | Identified exit to Armory 14860 | -4/Factory | Repaired Adv. Sensor Array 14893 | -4/Factory | Build established: Scavenger-Gunner 14973 | -4/Factory | Destroyed 8 combat bots 15057 | -4/Factory | Cargo convoy interrupted 15067 | -4/Factory | Spotted Striker 15067 | -4/Factory | Spotted Striker 15093 | -4/Factory | Destroyed Striker 15184 | -4/Factory | Lost 16 parts (3p5n4u4w) 15191 | -4/Factory | Found Prototype Device 15191 | -4/Factory | Identified Exp. Actuator Array 15245 | -4/Factory | Core integrity fell below 50% 15273 | -4/Factory | Lost 12 parts (1p6n1u4w) 15275 | -4/Factory | System corruption reached 10% 15280 | -4/Factory | Core integrity fell below 20% 15309 | -4/Factory | Destroyed by H-71 Marshal with Heavy Mass Driver Last Messages --------------- 15270_ Acquired Hvy. Gauss Cannon. 15272_ System corrupted: Matter fused (-6). 15272_ Knocked back. 15273_ Acquired 7 matter. 15273_ Dropped Hvy. Gauss Cannon. 15274_ Acquired Antigrav System. 15274_ Pressure Siphon disabled. 15276_ Acquired Antigrav System. 15281_ R-10 Processor collects Hvy. Gauss Cannon. 15282_ P-70 Sage resets R-10 Processor, system corruption cleaned. 15288_ System corrupted: Heat flow error (+290). 15294_ ALERT: Suspicious intruders detected, dispatching Cutter reinforcements to area. 15294_ Penetrated by Slug. 15301_ Antigrav System destroyed. 15301_ Knocked back. 15302_ U-05 Engineer builds a Door. 15305_ Penetrated by Slug. 15305_ Antigrav System destroyed. 15307_ Slug penetrates Wall. Map ----- +----------------------------------------------------+ | ?????????????????????????????????????????????? | | ?????????????????????????????????????????????? | | ?????????????????????????????????????????????? | | ?????????????????????????????????????????????? | | ?????????????????????????????????????????????? | | ?????????????????????????????????????????????? | | ?????????????????????????????????????????????? | | ?????????????????????????????? #?+???????????? | | ?????????????????????????????? ## #??????????? | | ??????????????????????????""" ##?????????? | | ??????????????????????????""" ??????????? | | ?????##############???????""" ???????????? | | ?????# #??????? ????????????? | | ?????# """ #??????? #?????????????? | | ?????# """ #??????? #?????????????? | | ????## """ ! %########t #?????????????? | | ????# "" + R #?????????????? | | ?????# "" # #?????????????? | | #????#==] # H #?????????????? | | #???#=]] / % #?????????????? | | #???#=] #"###"; ######?????????????? | | #???# ##??##; #??????????????????? | | #???# / #????## #??????????????????? | | #???# #?????# #??????????????????? | | #???#####/#/######?????#%#??????????????????? | | #???????# #????????#@#??????????????????? | | ######### #??????? ?????????????????? | | + +????? #????????????????? | | ######### #??? #????????????????? | | #???????# #? #????????????????? | | #???????# #[ """ """ #????????????????? | | #######??# # """ """ #????????????????? | | # """ """ #????????????????? | | # ?? #????????????????? | | #????"" ?"" #????????????????? | | #????""???? #????????????????? | | #?????????? #????????????????? | | ### #?????????? #????????????????? | | ??? #???????????##????????????????? | | ???? ?????????????????????????????? | | ???? ??????????????????????????????? | | ????? ????????????????????????????????? | | ????? ??????????????????????????????????? | | ?????? ???????????????????????????????????? | | ?????????????????????????????????????????????? | | ?????????????????????????????????????????????? | | ?????????????????????????????????????????????? | | ?????????????????????????????????????????????? | | ?????????????????????????????????????????????? | | ?????????????????????????????????????????????? | +----------------------------------------------------+ Best States ------------- Heat Dissipation 43 Energy Generation 37 Energy Capacity 395 Matter Stores 341 Matter Capacity 400 Sight Range 16 Robot Scan Range 16 Terrain Scan Density 10 ECM Strength 2 Armor Coverage 1050 Resistance: TH 25 Evasion (%) 53 Targeting Accuracy 6 Target Analysis 9 Core Analysis 6 Recoil Reduction 4 Authchip Count 1 Item Schematics ----------------- Imp. Treads | -9/Recycling | Hacked Coil Gun | -6/Factory | Scanalyzed Robot Schematics ------------------ Y-45 Defender | -9/Recycling | Hacked Fabricated ------------ Y-45 Defender | x2 | -6/Factory | Authchip Alien Tech Used ----------------- None Achievements -------------- None Challenges ------------ None Game ------ Seed ZhirovNodeField Manual? 0 Play Time 03:06:53 Cumulative 56.4 hours Start 2024.07.02 @ 21:07:32 End 2024.07.03 @ 11:16:56 Sessions 3 Manual Loads 0 Difficulty Rogue Special Mode None Game No. 42 Rogue 41 Adventurer 1 Explorer 0 Win Type - Total 0 Types 0/0/0/0/0/0/0/0/0 Lore% 27 Gallery% 32 Achievement% 28 Wizard Run 0 Options --------- Layout 1 ASCII 0 Keyboard 0 Movement Mouse Keybinds 0 Fullscreen 1 Font 24/Proggy Map View 76x35 Zoom Use 0% Tactical HUD 1 Map Filters NONE Filters NONE Steam 1 RUN: 0ef548b1-b860-4c7e-ba33-7a7b7c647790